[Event "*** Titled Tuesday Blitz"]
[Site "Chess.com"]
[Date "2020.12.29"]
[Round "11"]
[White "A-S-00"]
[Black "Loy_Konstantin"]
[Result "1-0"]
[WhiteElo "2292"]
[BlackElo "2373"]
[TimeControl "180+1"]
[EndTime "12:07:03 PST"]
[Termination "A-S-00 won by resignation"]

1. d4 {[%clk 0:03:00.2]} 1... Nf6 {[%clk 0:02:52.9]} 2. c4 {[%clk 0:03:00]} 2...
c5 {[%clk 0:02:52.4]} 3. d5 {[%clk 0:02:59.7]} 3... b5 {[%clk 0:02:52.5]} 4.
cxb5 {[%clk 0:02:59.5]} 4... a6 {[%clk 0:02:52.8]} 5. bxa6 {[%clk 0:02:59.6]}
5... Bxa6 {[%clk 0:02:53.7]} 6. Nc3 {[%clk 0:02:59.9]} 6... g6 {[%clk
0:02:53.6]} 7. Nf3 {[%clk 0:03:00.2]} 7... d6 {[%clk 0:02:53.3]} 8. g3 {[%clk
0:03:00.7]} 8... Nbd7 {[%clk 0:02:52.5]} 9. h3 {[%clk 0:03:01.3]} 9... Bg7
{[%clk 0:02:51.9]} 10. Bg2 {[%clk 0:03:01.9]} 10... Qa5 {[%clk 0:02:49]} 11. O-O
{[%clk 0:03:01.5]} 11... Nb6 {[%clk 0:02:46.1]} 12. Rb1 {[%clk 0:02:58.4]} 12...
Nc4 {[%clk 0:02:22.2]} 13. Qc2 {[%clk 0:02:55.1]} 13... Nd7 {[%clk 0:02:19]} 14.
Rd1 {[%clk 0:02:50.4]} 14... O-O {[%clk 0:02:16.6]} 15. e4 {[%clk 0:02:41.7]}
15... Rfb8 {[%clk 0:02:13.1]} 16. Bf1 {[%clk 0:02:32.4]} 16... Nce5 {[%clk
0:01:35.6]} 17. Nxe5 {[%clk 0:02:25.8]} 17... Nxe5 {[%clk 0:01:35.5]} 18. Kg2
{[%clk 0:02:23.1]} 18... Bxf1+ {[%clk 0:01:34]} 19. Rxf1 {[%clk 0:02:21.6]}
19... c4 {[%clk 0:01:24.3]} 20. Bd2 {[%clk 0:02:08.5]} 20... Qc5 {[%clk
0:00:51.9]} 21. Be3 {[%clk 0:02:03.8]} 21... Qa5 {[%clk 0:00:49.5]} 22. Rfd1
{[%clk 0:02:00.4]} 22... Nd3 {[%clk 0:00:45.9]} 23. Bd2 {[%clk 0:01:17.8]} 23...
Bxc3 {[%clk 0:00:39.4]} 24. Bxc3 {[%clk 0:01:16.4]} 24... Qxa2 {[%clk
0:00:36.8]} 25. Rxd3 {[%clk 0:00:47.7]} 25... cxd3 {[%clk 0:00:34]} 26. Qxd3
{[%clk 0:00:47.9]} 26... Rb3 {[%clk 0:00:26.9]} 27. Rc1 {[%clk 0:00:38.5]} 27...
Qa7 {[%clk 0:00:26]} 28. h4 {[%clk 0:00:35.6]} 28... h5 {[%clk 0:00:20.3]} 29.
Qd2 {[%clk 0:00:31.6]} 29... Rc8 {[%clk 0:00:18.6]} 30. Qh6 {[%clk 0:00:29]}
30... Rbxc3 {[%clk 0:00:18.2]} 31. bxc3 {[%clk 0:00:28.5]} 31... Qa4 {[%clk
0:00:15.3]} 32. Qe3 {[%clk 0:00:28.1]} 32... Rc4 {[%clk 0:00:14.2]} 33. Rb1
{[%clk 0:00:26.9]} 33... Qa8 {[%clk 0:00:13.3]} 34. Rb4 {[%clk 0:00:24.2]} 34...
Rc8 {[%clk 0:00:12.4]} 35. c4 {[%clk 0:00:23.7]} 35... Qa2 {[%clk 0:00:12.1]}
36. Qc3 {[%clk 0:00:19.8]} 36... Qe2 {[%clk 0:00:10.9]} 37. Qd4 {[%clk
0:00:16.6]} 37... Qg4 {[%clk 0:00:10.1]} 38. Rb3 {[%clk 0:00:15.5]} 38... f6
{[%clk 0:00:10.1]} 39. f3 {[%clk 0:00:15]} 39... Qd7 {[%clk 0:00:09.7]} 40. Rc3
{[%clk 0:00:10.8]} 40... Qc7 {[%clk 0:00:09]} 41. f4 {[%clk 0:00:09.9]} 41...
Kf7 {[%clk 0:00:09.3]} 42. e5 {[%clk 0:00:08.2]} 42... dxe5 {[%clk 0:00:09.1]}
43. fxe5 {[%clk 0:00:08.6]} 43... Qxe5 {[%clk 0:00:08.9]} 44. Qxe5 {[%clk
0:00:08.9]} 44... fxe5 {[%clk 0:00:09.8]} 45. Kf3 {[%clk 0:00:09.5]} 45... e6
{[%clk 0:00:09.4]} 46. d6 {[%clk 0:00:08.1]} 46... Rc6 {[%clk 0:00:09.1]} 47. c5
{[%clk 0:00:07.9]} 47... Ke8 {[%clk 0:00:09.3]} 48. Ke4 {[%clk 0:00:08.2]} 48...
Kd7 {[%clk 0:00:09.5]} 49. Kxe5 {[%clk 0:00:08.6]} 49... Ra6 {[%clk 0:00:09.9]}
50. Kf6 {[%clk 0:00:08.7]} 50... Ra4 {[%clk 0:00:09.5]} 51. Kxg6 {[%clk
0:00:07.8]} 51... Rg4+ {[%clk 0:00:09.6]} 52. Kxh5 {[%clk 0:00:08.1]} 52... Rg8
{[%clk 0:00:09.8]} 53. g4 {[%clk 0:00:08.4]} 53... e5 {[%clk 0:00:09.8]} 54. g5
{[%clk 0:00:08.5]} 54... Ke6 {[%clk 0:00:10.1]} 55. Kg4 {[%clk 0:00:08.5]} 55...
Kd5 {[%clk 0:00:09.8]} 56. h5 {[%clk 0:00:06.8]} 56... Kd4 {[%clk 0:00:09.9]}
57. Rc1 {[%clk 0:00:07]} 57... e4 {[%clk 0:00:10.2]} 58. c6 {[%clk 0:00:07.5]}
58... Ke5 {[%clk 0:00:08.8]} 59. d7 {[%clk 0:00:07.3]} 59... Kd6 {[%clk
0:00:08.5]} 60. h6 {[%clk 0:00:06.5]} 60... Kc7 {[%clk 0:00:07.6]} 61. h7 {[%clk
0:00:06.7]} 61... Rh8 {[%clk 0:00:07.3]} 62. g6 {[%clk 0:00:07.2]} 62... e3
{[%clk 0:00:06.7]} 63. g7 {[%clk 0:00:07.4]} 1-0

[Event "*** Titled Tuesday Blitz"]
[Site "Chess.com"]
[Date "2020.12.29"]
[Round "11"]
[White "KarstenHansch"]
[Black "tsaruk_maks"]
[Result "0-1"]
[WhiteElo "2463"]
[BlackElo "2588"]
[TimeControl "180+1"]
[EndTime "12:07:06 PST"]
[Termination "tsaruk_maks won by resignation"]

1. e4 {[%clk 0:03:00.9]} 1... e5 {[%clk 0:03:00]} 2. Nf3 {[%clk 0:03:00.6]} 2...
Nc6 {[%clk 0:02:59.9]} 3. Bb5 {[%clk 0:03:00.1]} 3... a6 {[%clk 0:02:59.9]} 4.
Ba4 {[%clk 0:03:00]} 4... Nf6 {[%clk 0:03:00.1]} 5. O-O {[%clk 0:03:00]} 5...
Be7 {[%clk 0:02:59.9]} 6. Re1 {[%clk 0:02:59.6]} 6... b5 {[%clk 0:03:00.3]} 7.
Bb3 {[%clk 0:02:59.9]} 7... O-O {[%clk 0:02:59.5]} 8. a4 {[%clk 0:03:00.5]} 8...
Bb7 {[%clk 0:02:57.6]} 9. d3 {[%clk 0:02:48.6]} 9... d6 {[%clk 0:02:57.8]} 10.
c3 {[%clk 0:02:48.5]} 10... Na5 {[%clk 0:02:51.2]} 11. Bc2 {[%clk 0:02:47.2]}
11... c5 {[%clk 0:02:50.6]} 12. axb5 {[%clk 0:02:45.5]} 12... axb5 {[%clk
0:02:50.5]} 13. b4 {[%clk 0:02:44.2]} 13... cxb4 {[%clk 0:02:43.5]} 14. cxb4
{[%clk 0:02:45.1]} 14... Nc6 {[%clk 0:02:44.2]} 15. Rxa8 {[%clk 0:02:44.1]}
15... Qxa8 {[%clk 0:02:45.1]} 16. Bd2 {[%clk 0:02:43.2]} 16... d5 {[%clk
0:02:10.8]} 17. exd5 {[%clk 0:02:40.7]} 17... Nxd5 {[%clk 0:02:11.7]} 18. Nxe5
{[%clk 0:02:39.8]} 18... Bxb4 {[%clk 0:02:01.3]} 19. Bb3 {[%clk 0:02:34.8]}
19... Nxe5 {[%clk 0:01:41.2]} 20. Rxe5 {[%clk 0:02:29.9]} 20... Bd6 {[%clk
0:01:19.9]} 21. Rh5 {[%clk 0:02:18.3]} 21... g6 {[%clk 0:01:12.8]} 22. Rh4
{[%clk 0:02:08.4]} 22... b4 {[%clk 0:01:03.1]} 23. Qg4 {[%clk 0:01:20]} 23...
Qa1 {[%clk 0:00:36.4]} 24. Qd1 {[%clk 0:01:18.9]} 24... Rd8 {[%clk 0:00:26.7]}
25. Nc3 {[%clk 0:01:13.6]} 25... Qxd1+ {[%clk 0:00:25.9]} 26. Nxd1 {[%clk
0:01:14.5]} 26... Be7 {[%clk 0:00:15.2]} 27. Rd4 {[%clk 0:01:00.3]} 27... Bc5
{[%clk 0:00:14.6]} 28. Bxd5 {[%clk 0:00:56]} 28... Bxd5 {[%clk 0:00:09.9]} 29.
Rf4 {[%clk 0:00:53.5]} 29... b3 {[%clk 0:00:07.7]} 30. Bc3 {[%clk 0:00:52.3]}
30... Be6 {[%clk 0:00:06.8]} 31. Nb2 {[%clk 0:00:51.6]} 31... Rc8 {[%clk
0:00:03.9]} 32. Na4 {[%clk 0:00:41.8]} 32... Ba3 {[%clk 0:00:03.9]} 33. h4
{[%clk 0:00:36.4]} 33... Bd7 {[%clk 0:00:04]} 34. Bb2 {[%clk 0:00:30.2]} 34...
Bxb2 {[%clk 0:00:04]} 35. Nxb2 {[%clk 0:00:30.1]} 35... Rc2 {[%clk 0:00:04.9]}
36. Nc4 {[%clk 0:00:25.2]} 36... b2 {[%clk 0:00:04.8]} 37. Nxb2 {[%clk 0:00:24]}
37... Rxb2 {[%clk 0:00:05.7]} 38. Rd4 {[%clk 0:00:24.6]} 38... Be6 {[%clk
0:00:06]} 39. h5 {[%clk 0:00:23.4]} 39... Kg7 {[%clk 0:00:06.6]} 40. hxg6 {[%clk
0:00:23.3]} 40... hxg6 {[%clk 0:00:07.2]} 41. g4 {[%clk 0:00:22.5]} 41... Kf6
{[%clk 0:00:07.7]} 42. Kg2 {[%clk 0:00:22.7]} 42... g5 {[%clk 0:00:07.9]} 43.
Kg3 {[%clk 0:00:22.6]} 43... Rb3 {[%clk 0:00:08]} 44. Kf3 {[%clk 0:00:22.1]}
44... Ke7 {[%clk 0:00:08]} 45. Ke3 {[%clk 0:00:22.1]} 45... Rb1 {[%clk
0:00:07.5]} 46. f4 {[%clk 0:00:21.8]} 46... gxf4+ {[%clk 0:00:07]} 47. Kxf4
{[%clk 0:00:21.3]} 47... Kf6 {[%clk 0:00:07.7]} 48. g5+ {[%clk 0:00:18.2]} 48...
Kg6 {[%clk 0:00:07.6]} 49. Ra4 {[%clk 0:00:14.4]} 49... Rf1+ {[%clk 0:00:08]}
50. Kg3 {[%clk 0:00:14.6]} 50... Kxg5 {[%clk 0:00:07.4]} 51. d4 {[%clk
0:00:15.2]} 51... Rd1 {[%clk 0:00:06.8]} 52. Kf3 {[%clk 0:00:14.1]} 52... Rd3+
{[%clk 0:00:07.1]} 53. Ke4 {[%clk 0:00:13.7]} 53... Bf5+ {[%clk 0:00:06.9]} 54.
Ke5 {[%clk 0:00:13.4]} 54... Re3+ {[%clk 0:00:05.3]} 55. Kd5 {[%clk 0:00:13.5]}
55... Be4+ {[%clk 0:00:04.7]} 56. Kc5 {[%clk 0:00:13.1]} 56... f5 {[%clk
0:00:05.1]} 57. d5 {[%clk 0:00:13]} 57... Rd3 {[%clk 0:00:05.8]} 58. Ra1 {[%clk
0:00:04.1]} 58... Rxd5+ {[%clk 0:00:06.2]} 59. Kc4 {[%clk 0:00:04.4]} 59... f4
{[%clk 0:00:06.3]} 60. Rg1+ {[%clk 0:00:03.9]} 60... Kf5 {[%clk 0:00:06.9]} 61.
Rg8 {[%clk 0:00:04]} 61... f3 {[%clk 0:00:06.8]} 62. Rf8+ {[%clk 0:00:04.1]}
62... Kg4 {[%clk 0:00:07]} 63. Re8 {[%clk 0:00:04.3]} 63... Kf4 {[%clk
0:00:07.4]} 64. Rf8+ {[%clk 0:00:04.3]} 64... Ke3 {[%clk 0:00:07.9]} 65. Kc3
{[%clk 0:00:04.4]} 65... f2 {[%clk 0:00:07.8]} 66. Kc4 {[%clk 0:00:04.1]} 66...
Rd1 {[%clk 0:00:07.6]} 0-1

[Event "*** Titled Tuesday Blitz"]
[Site "Chess.com"]
[Date "2020.12.29"]
[Round "11"]
[White "DenLaz"]
[Black "Salem-AR"]
[Result "1-0"]
[WhiteElo "2841"]
[BlackElo "2912"]
[TimeControl "180+1"]
[EndTime "12:07:16 PST"]
[Termination "DenLaz won by resignation"]

1. d4 {[%clk 0:03:00.9]} 1... Nf6 {[%clk 0:02:58.9]} 2. c4 {[%clk 0:03:01.3]}
2... g6 {[%clk 0:02:59.4]} 3. g3 {[%clk 0:03:01]} 3... Bg7 {[%clk 0:02:59.3]} 4.
Bg2 {[%clk 0:03:01.5]} 4... d5 {[%clk 0:03:00.1]} 5. cxd5 {[%clk 0:03:00.6]}
5... Nxd5 {[%clk 0:03:01]} 6. Nf3 {[%clk 0:03:01.3]} 6... Nb6 {[%clk 0:03:01.8]}
7. Nc3 {[%clk 0:03:00.1]} 7... Nc6 {[%clk 0:03:02.3]} 8. e3 {[%clk 0:03:00.5]}
8... O-O {[%clk 0:03:02.9]} 9. O-O {[%clk 0:03:00.8]} 9... Re8 {[%clk
0:03:03.7]} 10. h3 {[%clk 0:03:00.7]} 10... a5 {[%clk 0:02:53]} 11. Qc2 {[%clk
0:02:59.2]} 11... a4 {[%clk 0:02:50.7]} 12. Rd1 {[%clk 0:02:51.1]} 12... Bd7
{[%clk 0:02:37.7]} 13. e4 {[%clk 0:02:49.5]} 13... Qc8 {[%clk 0:02:34.3]} 14.
Kh2 {[%clk 0:02:46.3]} 14... e5 {[%clk 0:02:11.7]} 15. dxe5 {[%clk 0:02:39.2]}
15... Nxe5 {[%clk 0:02:12.1]} 16. Nxe5 {[%clk 0:02:39.4]} 16... Bxe5 {[%clk
0:02:12.8]} 17. f4 {[%clk 0:02:37.1]} 17... Bg7 {[%clk 0:02:10.4]} 18. e5 {[%clk
0:02:37.4]} 18... f6 {[%clk 0:02:04]} 19. exf6 {[%clk 0:01:37.4]} 19... Bxf6
{[%clk 0:02:04.9]} 20. Ne4 {[%clk 0:01:33.2]} 20... Bg7 {[%clk 0:01:59.8]} 21.
Be3 {[%clk 0:01:23.4]} 21... Bf5 {[%clk 0:01:48.9]} 22. Bxb6 {[%clk 0:01:22.1]}
22... cxb6 {[%clk 0:01:35.8]} 23. Qxc8 {[%clk 0:01:09.9]} 23... Rexc8 {[%clk
0:01:34.6]} 24. Nd6 {[%clk 0:00:53.9]} 24... Rc2 {[%clk 0:01:34.7]} 25. Nxf5
{[%clk 0:00:54]} 25... gxf5 {[%clk 0:01:34.8]} 26. Rac1 {[%clk 0:00:47.2]} 26...
Rxb2 {[%clk 0:01:16.9]} 27. Kh1 {[%clk 0:00:46.3]} 27... Kh8 {[%clk 0:01:11.5]}
28. Bxb7 {[%clk 0:00:38.7]} 28... Rf8 {[%clk 0:01:06.8]} 29. Bd5 {[%clk
0:00:37.9]} 29... b5 {[%clk 0:01:02.5]} 30. Rb1 {[%clk 0:00:37.1]} 30... a3
{[%clk 0:00:45.3]} 31. Rbc1 {[%clk 0:00:22.7]} 31... b4 {[%clk 0:00:45.3]} 32.
Be6 {[%clk 0:00:19.9]} 32... Bc3 {[%clk 0:00:40.2]} 33. Rd7 {[%clk 0:00:15.2]}
33... Re2 {[%clk 0:00:40.8]} 34. Bb3 {[%clk 0:00:13.2]} 34... Rfe8 {[%clk
0:00:40.4]} 35. Rcd1 {[%clk 0:00:13.3]} 35... Re1+ {[%clk 0:00:31.3]} 36. Rxe1
{[%clk 0:00:13.3]} 36... Rxe1+ {[%clk 0:00:27.7]} 37. Kg2 {[%clk 0:00:13.8]}
37... Rb1 {[%clk 0:00:26.1]} 38. Ra7 {[%clk 0:00:13.8]} 38... Rb2+ {[%clk
0:00:22.8]} 39. Kf3 {[%clk 0:00:12]} 39... Bd4 {[%clk 0:00:23.5]} 40. Ra8+
{[%clk 0:00:12.3]} 40... Kg7 {[%clk 0:00:24.1]} 41. g4 {[%clk 0:00:13.2]} 41...
h5 {[%clk 0:00:15.9]} 42. gxf5 {[%clk 0:00:12.8]} 42... Rd2 {[%clk 0:00:12.8]}
43. Ke4 {[%clk 0:00:12.2]} 43... Bc5 {[%clk 0:00:12.1]} 44. Ra6 {[%clk
0:00:10.7]} 44... Be7 {[%clk 0:00:07.9]} 45. Rg6+ {[%clk 0:00:09.6]} 45... Kh7
{[%clk 0:00:08.6]} 46. Ra6 {[%clk 0:00:07.3]} 46... Kg7 {[%clk 0:00:08.4]} 47.
Ke3 {[%clk 0:00:07.6]} 47... Rb2 {[%clk 0:00:07.3]} 48. Kf3 {[%clk 0:00:07.3]}
48... Bf6 {[%clk 0:00:07]} 49. Ra7+ {[%clk 0:00:07]} 49... Kh6 {[%clk
0:00:06.1]} 50. Ke4 {[%clk 0:00:07.4]} 50... Re2+ {[%clk 0:00:05]} 51. Kd5
{[%clk 0:00:07.8]} 51... Re3 {[%clk 0:00:03.8]} 52. Ra6 {[%clk 0:00:06.3]} 52...
Kg7 {[%clk 0:00:04.3]} 53. Ra7+ {[%clk 0:00:06.6]} 53... Kf8 {[%clk 0:00:05.1]}
54. Kc6 {[%clk 0:00:03.7]} 54... Rc3+ {[%clk 0:00:02.8]} 55. Kb5 {[%clk
0:00:03.8]} 55... Ke8 {[%clk 0:00:02.7]} 56. Ra6 {[%clk 0:00:03.6]} 56... Ke7
{[%clk 0:00:02]} 57. Re6+ {[%clk 0:00:03.5]} 57... Kf7 {[%clk 0:00:02.5]} 58.
Ra6+ {[%clk 0:00:04.1]} 58... Ke7 {[%clk 0:00:02.6]} 59. Kxb4 {[%clk 0:00:03.9]}
59... Rxh3 {[%clk 0:00:01.7]} 60. Re6+ {[%clk 0:00:03.5]} 60... Kd7 {[%clk
0:00:02.4]} 61. Rxf6 {[%clk 0:00:03.7]} 61... Rf3 {[%clk 0:00:03.2]} 62. Rh6
{[%clk 0:00:04.1]} 62... Rxf4+ {[%clk 0:00:04.1]} 63. Bc4 {[%clk 0:00:04.4]}
63... h4 {[%clk 0:00:03.5]} 64. f6 {[%clk 0:00:03.8]} 64... Kd6 {[%clk 0:00:04]}
65. f7+ {[%clk 0:00:04.3]} 65... Ke7 {[%clk 0:00:04.8]} 66. Rh8 {[%clk
0:00:04.8]} 66... Kd7 {[%clk 0:00:04]} 67. f8=Q {[%clk 0:00:04.7]} 67... Rxf8
{[%clk 0:00:03.7]} 68. Rxf8 {[%clk 0:00:05.6]} 1-0

[Event "*** Titled Tuesday Blitz"]
[Site "Chess.com"]
[Date "2020.12.29"]
[Round "11"]
[White "Brave_spirit12"]
[Black "Nafania1"]
[Result "1/2-1/2"]
[WhiteElo "2543"]
[BlackElo "2427"]
[TimeControl "180+1"]
[EndTime "12:07:21 PST"]
[Termination "Game drawn by agreement"]

1. e4 {[%clk 0:03:00.9]} 1... e6 {[%clk 0:02:53.9]} 2. d4 {[%clk 0:03:00.2]}
2... d5 {[%clk 0:02:53]} 3. exd5 {[%clk 0:03:00.7]} 3... exd5 {[%clk 0:02:52.7]}
4. Nc3 {[%clk 0:03:01.6]} 4... Nf6 {[%clk 0:02:51.8]} 5. Bd3 {[%clk 0:03:02.2]}
5... c5 {[%clk 0:02:51.2]} 6. dxc5 {[%clk 0:03:01.7]} 6... Bxc5 {[%clk
0:02:50.9]} 7. Nge2 {[%clk 0:03:02.1]} 7... O-O {[%clk 0:02:50.8]} 8. O-O {[%clk
0:02:57.5]} 8... h6 {[%clk 0:02:49.5]} 9. Bf4 {[%clk 0:02:55]} 9... Nc6 {[%clk
0:02:49.6]} 10. a3 {[%clk 0:02:49.2]} 10... a6 {[%clk 0:02:49.2]} 11. b4 {[%clk
0:02:48.4]} 11... Ba7 {[%clk 0:02:46.8]} 12. Ng3 {[%clk 0:02:46.4]} 12... Bg4
{[%clk 0:02:46]} 13. Be2 {[%clk 0:02:40.3]} 13... Be6 {[%clk 0:02:45.1]} 14. Qd2
{[%clk 0:02:38.8]} 14... Re8 {[%clk 0:02:38.7]} 15. Rad1 {[%clk 0:02:36.5]}
15... Bd4 {[%clk 0:02:36.7]} 16. Na4 {[%clk 0:02:30.7]} 16... Ne4 {[%clk
0:02:24.7]} 17. Nxe4 {[%clk 0:02:26.2]} 17... dxe4 {[%clk 0:02:25.1]} 18. b5
{[%clk 0:02:23.1]} 18... axb5 {[%clk 0:02:24.7]} 19. Bxb5 {[%clk 0:02:24]} 19...
Bf6 {[%clk 0:02:07.3]} 20. Qxd8 {[%clk 0:01:54.6]} 20... Rexd8 {[%clk
0:02:03.1]} 21. Nc5 {[%clk 0:01:40.7]} 21... Nd4 {[%clk 0:01:49.2]} 22. Nxe6
{[%clk 0:01:33]} 22... Nxe6 {[%clk 0:01:45.3]} 23. Be3 {[%clk 0:01:22.3]} 23...
Rxa3 {[%clk 0:01:42]} 24. Rxd8+ {[%clk 0:01:20.8]} 24... Bxd8 {[%clk 0:01:39.1]}
25. Rd1 {[%clk 0:01:21.1]} 25... Ra8 {[%clk 0:01:34.1]} 26. g3 {[%clk
0:01:18.8]} 26... Bf6 {[%clk 0:01:30.8]} 27. Kg2 {[%clk 0:01:16.4]} 27... Rd8
{[%clk 0:01:27.3]} 28. Rb1 {[%clk 0:01:15.6]} 28... Nd4 {[%clk 0:01:25.4]} 29.
Ba4 {[%clk 0:01:12.7]} 29... b5 {[%clk 0:01:20.4]} 30. Bxd4 {[%clk 0:01:03.8]}
30... Rxd4 {[%clk 0:00:58.3]} 31. Bxb5 {[%clk 0:00:57.9]} 31... Rd2 {[%clk
0:00:58.3]} 32. Re1 {[%clk 0:00:56.3]} 32... Rxc2 {[%clk 0:00:48.2]} 33. Rxe4
{[%clk 0:00:54.3]} 33... g6 {[%clk 0:00:44.3]} 34. Bc4 {[%clk 0:00:50.7]} 34...
Kg7 {[%clk 0:00:43.2]} 35. Bb3 {[%clk 0:00:46.1]} 35... Rd2 {[%clk 0:00:40.5]}
36. Rf4 {[%clk 0:00:42.1]} 36... Rd7 {[%clk 0:00:36]} 37. h4 {[%clk 0:00:40.4]}
37... Rd4 {[%clk 0:00:35.6]} 38. Rf3 {[%clk 0:00:40]} 38... Rd7 {[%clk 0:00:35]}
39. h5 {[%clk 0:00:37.6]} 39... gxh5 {[%clk 0:00:32.9]} 40. Kh3 {[%clk
0:00:34.1]} 40... Rb7 {[%clk 0:00:31.4]} 41. Bd1 {[%clk 0:00:29.6]} 41... Rd7
{[%clk 0:00:30.6]} 42. Be2 {[%clk 0:00:29.2]} 42... Rd2 {[%clk 0:00:30.7]} 43.
Re3 {[%clk 0:00:24.2]} 43... Rd5 {[%clk 0:00:29.3]} 44. Bf3 {[%clk 0:00:22.4]}
44... Re5 {[%clk 0:00:29.2]} 45. Rb3 {[%clk 0:00:20.9]} 45... Rf5 {[%clk
0:00:28.6]} 46. Rd3 {[%clk 0:00:14.6]} 46... Rc5 {[%clk 0:00:27.4]} 47. Rd7
{[%clk 0:00:12]} 47... Rf5 {[%clk 0:00:25.3]} 48. Bd5 {[%clk 0:00:09.8]} 48...
Be5 {[%clk 0:00:22.6]} 49. f3 {[%clk 0:00:09.7]} 49... Rf6 {[%clk 0:00:20]} 50.
Kh4 {[%clk 0:00:07.2]} 50... Bc3 {[%clk 0:00:16.3]} 51. Kxh5 {[%clk 0:00:04.5]}
51... Be1 {[%clk 0:00:15.6]} 52. Kg4 {[%clk 0:00:04.7]} 52... Rg6+ {[%clk
0:00:15.5]} 53. Kh3 {[%clk 0:00:04.3]} 53... Rxg3+ {[%clk 0:00:15.4]} 54. Kh2
{[%clk 0:00:04.8]} 54... Rg5 {[%clk 0:00:13.6]} 55. Rxf7+ {[%clk 0:00:05.3]}
55... Kg8 {[%clk 0:00:13.9]} 56. Re7+ {[%clk 0:00:04.3]} 56... Rxd5 {[%clk
0:00:13.5]} 57. Rxe1 {[%clk 0:00:04.1]} 57... Kg7 {[%clk 0:00:13.9]} 58. Kg3
{[%clk 0:00:04.5]} 58... Kg6 {[%clk 0:00:14.2]} 59. Kf4 {[%clk 0:00:04.9]} 59...
Rf5+ {[%clk 0:00:13.6]} 60. Ke4 {[%clk 0:00:05.1]} 60... Rf8 {[%clk 0:00:13.2]}
61. Ra1 {[%clk 0:00:05.4]} 61... Kg5 {[%clk 0:00:12.7]} 62. Ra5+ {[%clk
0:00:04.9]} 62... Kg6 {[%clk 0:00:12.7]} 63. f4 {[%clk 0:00:04.9]} 63... Re8+
{[%clk 0:00:12.5]} 64. Kf3 {[%clk 0:00:05.4]} 64... Rc8 {[%clk 0:00:12.1]} 65.
Ra6+ {[%clk 0:00:05.6]} 65... Kg7 {[%clk 0:00:11.3]} 66. Kg4 {[%clk 0:00:05.5]}
66... Rc5 {[%clk 0:00:11.2]} 67. f5 {[%clk 0:00:04.4]} 67... Rc4+ {[%clk
0:00:09.4]} 68. Kh5 {[%clk 0:00:04.2]} 68... Rf4 {[%clk 0:00:09.1]} 69. Rg6+
{[%clk 0:00:02.8]} 69... Kf7 {[%clk 0:00:09.2]} 70. Rxh6 {[%clk 0:00:02.4]}
70... Rxf5+ {[%clk 0:00:09.3]} 71. Kg4 {[%clk 0:00:02.9]} 71... Rf1 {[%clk
0:00:09.2]} 72. Rh3 {[%clk 0:00:02.4]} 1/2-1/2